fUSD/lending_fUSD_20260407
["ID","MTS","AMOUNT","RATE_DAILY","PERIOD"]
[419969594,1775573446250,-151.0,0.00014973,2]
[419969596,1775573446261,-151.0,0.00014973,2]
[419969598,1775573446271,-310.762173,0.00014973,2]
[419969600,1775573446281,-151.0,0.00014973,2]
[419969601,1775573446291,-196.442134,0.00014973,2]
[419969602,1775573446301,-151.0,0.00014973,2]
[419969603,1775573446311,-164.212319,0.00014973,2]
[419969604,1775573446320,-575.477206,0.00014973,2]
[419969605,1775573446331,-575.477206,0.00014973,2]
[419969606,1775573446340,-893.154203,0.00014973,2]
[419969608,1775573446350,-575.477206,0.00014973,2]
[419969610,1775573446359,-893.154203,0.00014973,2]
[419969612,1775573446369,-893.154203,0.00014973,2]
[419969614,1775573446379,-575.477206,0.00014973,2]
[419969615,1775573446389,-893.154203,0.00014973,2]
[419969616,1775573446400,-184.926042,0.00014973,2]
[419969617,1775573446410,-184.926042,0.00014973,2]
[419969618,1775573446420,-184.926042,0.00014973,2]
[419969619,1775573446431,-151.0,0.00014973,2]
[419969620,1775573446440,-184.926042,0.00014973,2]
[419969621,1775573446451,-151.0,0.00014973,2]
[419969622,1775573446461,-151.0,0.00014973,2]
[419969623,1775573446471,-151.0,0.00014973,2]
[419969624,1775573446483,-151.0,0.00014973,2]
[419969625,1775573446493,-151.0,0.00014973,2]
[419969626,1775573446504,-871.95012592,0.00014973,2]
[419969627,1775573446516,-279.35811522,0.00014973,2]
[419969628,1775573446527,-209.92,0.00014979,2]
[419969629,1775573446538,-988.0,0.00015,2]
[419969630,1775573446549,-300.0,0.00015,2]
[419969631,1775573446559,-151.0,0.00015,2]
[419969632,1775573446569,-151.0,0.00015,2]
[419969633,1775573446585,-151.24938361,0.00015,7]
[419969634,1775573446595,-151.0,0.00015,2]
[419969635,1775573446606,-151.0,0.00015,2]
[419969636,1775573446616,-151.0,0.00015,2]
[419969637,1775573446627,-151.0,0.00015,2]
[419969638,1775573446639,-151.0,0.00015,2]
[419969639,1775573446650,-152.065096,0.00015,2]
[419969640,1775573446661,-151.0,0.00015,2]
[419969641,1775573446673,-151.0,0.00015,2]
[419969642,1775573446683,-151.0,0.00015,2]
[419969643,1775573446694,-1313.0,0.00015,2]
[419969644,1775573446705,-484.0,0.00015005,2]
[419969645,1775573446715,-2557.0,0.00015022,2]
[419969646,1775573446726,-151.0,0.00015022,2]
[419969647,1775573447316,-151.0,0.00015022,2]
[419969648,1775573447326,-151.0,0.00015022,2]
[419969649,1775573447336,-151.0,0.00015022,2]
[419969650,1775573447346,-155.988501,0.00015022,2]
[419969651,1775573447355,-151.0,0.00015022,2]
[419969652,1775573447365,-151.0,0.00015022,2]
[419969653,1775573447375,-151.0,0.00015022,2]
[419969654,1775573447385,-151.0,0.00015022,2]
[419969655,1775573447395,-151.0,0.00015022,2]
[419969656,1775573447404,-151.0,0.00015022,2]
[419969657,1775573447415,-151.0,0.00015022,2]
[419969658,1775573447426,-151.0,0.00015022,2]
[419969659,1775573447435,-151.0,0.00015022,2]
[419969660,1775573447445,-151.0,0.00015022,2]
[419969661,1775573447455,-151.0,0.00015022,2]
[419969662,1775573447466,-151.0,0.00015022,2]
[419969663,1775573447476,-152.534619,0.00015022,2]
[419969664,1775573447487,-151.0,0.00015022,2]
[419969665,1775573447496,-151.0,0.00015022,2]
[419969666,1775573447506,-2557.0,0.00015037,2]
[419969667,1775573447516,-2557.0,0.00015038,2]
[419969668,1775573447526,-162.0,0.0001504,2]
[419969669,1775573447535,-3206.0,0.00015057,2]
[419969670,1775573447545,-932.02,0.00015057,2]
[419969671,1775573447555,-2189.53,0.00015057,2]
[419969672,1775573447565,-6262.55,0.00015057,2]
[419969673,1775573447587,-767.82,0.00015057,2]
[419969674,1775573447599,-396.02,0.00015068,2]
[419969675,1775573447610,-493.54914906,0.00015068,2]
[419969676,1775573447620,-233.34,0.00015075,2]
[419969677,1775573447632,-178.0,0.000151,2]
[419969678,1775573447643,-1600.0,0.0001513,2]
[419969679,1775573447655,-484.0,0.00015132,2]
[419969680,1775573447665,-350.0,0.0001515,2]
[419969681,1775573447676,-1071.66148476,0.00015153,2]
[419969682,1775573447686,-1097.54269778,0.00015153,2]
[419969683,1775573447696,-1052.5283407,0.00015153,2]
[419969684,1775573447707,-1139.12524431,0.00015153,2]
[419969685,1775573447717,-1147.32532554,0.00015153,2]
[419969686,1775573447727,-1989.9076297,0.00015153,2]
[419969687,1775573447738,-2557.0,0.00015163,2]
[419969688,1775573447748,-500.0,0.00015173,2]
[419969689,1775573447759,-180.21187415,0.00015173,2]
[419969690,1775573447769,-501.19620744,0.00015173,2]
[419969691,1775573447780,-500.0,0.00015173,2]
[419969692,1775573447791,-500.0,0.00015173,2]
[419969693,1775573447802,-501.02973938,0.00015173,2]
[419969694,1775573447812,-500.0,0.00015173,2]
[419969695,1775573447821,-500.0,0.00015173,2]
[419969696,1775573447831,-337.90453598,0.00015173,2]
[419969697,1775573447842,-500.0,0.00015173,2]
[419969698,1775573447853,-500.0,0.00015173,2]
[419969699,1775573447863,-500.0,0.00015173,2]
[419969700,1775573447872,-500.0,0.00015173,2]
[419969701,1775573447883,-500.0,0.00015173,2]
[419969702,1775573447894,-189.95993746,0.00015173,2]
[419969703,1775573447905,-500.0,0.00015173,2]
[419969704,1775573447915,-500.0,0.00015173,2]
[419969705,1775573447925,-500.0,0.00015173,2]
[419969706,1775573447936,-561.33456625,0.00015173,2]
[419969707,1775573447947,-244.01107124,0.00015173,2]
[419969708,1775573447957,-500.0,0.00015173,2]
[419969709,1775573447969,-6514.61265819,0.00015191,2]
[419969710,1775573447980,-342831.58,0.000152,2]
[419969711,1775573447990,-151.0,0.000152,2]
[419969712,1775573448000,-303.62306,0.000152,2]
[419969713,1775573448010,-303.62306,0.000152,2]
[419969714,1775573448020,-303.62306,0.000152,2]
[419969715,1775573448030,-303.62306,0.000152,2]
[419969716,1775573448041,-151.0,0.000152,2]
[419969717,1775573448051,-151.0,0.000152,2]
[419969718,1775573448061,-151.0,0.000152,2]
[419969719,1775573448071,-151.0,0.000152,2]
[419969720,1775573448082,-151.0,0.000152,2]
[419969721,1775573448093,-151.0,0.000152,2]
[419969722,1775573448104,-151.0,0.000152,2]
[419969723,1775573448115,-151.0,0.000152,2]
[419969724,1775573448125,-151.0,0.000152,2]
[419969725,1775573448135,-151.0,0.000152,2]
[419969726,1775573448146,-151.0,0.000152,2]
[419969727,1775573448157,-151.0,0.000152,2]
[419969728,1775573448166,-151.0,0.000152,2]
[419969729,1775573448177,-151.0,0.000152,2]
[419969730,1775573448187,-151.0,0.000152,2]
[419969731,1775573448197,-151.0,0.000152,2]
[419969732,1775573448208,-151.0,0.000152,2]
[419969733,1775573448218,-151.0,0.000152,2]
[419969734,1775573448228,-151.0,0.000152,2]
[419969735,1775573448239,-151.0,0.000152,2]
[419969736,1775573448250,-151.0,0.000152,2]
[419969737,1775573448260,-151.0,0.000152,2]
[419969738,1775573448270,-151.0,0.000152,2]
[419969739,1775573448280,-295.044252,0.000152,2]
[419969740,1775573448289,-151.0,0.000152,2]
[419969741,1775573448299,-151.0,0.000152,2]
[419969742,1775573448309,-151.0,0.000152,2]
[419969743,1775573448318,-151.0,0.000152,2]
[419969744,1775573448328,-151.0,0.000152,2]
[419969745,1775573448338,-151.0,0.000152,2]
[419969746,1775573448348,-151.0,0.000152,2]
[419969747,1775573448359,-151.0,0.000152,2]
[419969748,1775573448369,-151.0,0.000152,2]
[419969749,1775573448380,-151.0,0.000152,2]
[419969750,1775573448390,-151.0,0.000152,2]
[419969751,1775573448407,-151.0,0.000152,2]
[419969752,1775573448417,-151.0,0.000152,2]
[419969753,1775573448427,-151.0,0.000152,2]
[419969754,1775573448438,-399.955189,0.000152,2]
[419969755,1775573448449,-151.0,0.000152,2]
[419969756,1775573448460,-151.0,0.000152,2]
[419969757,1775573448472,-151.0,0.000152,2]
[419969758,1775573448484,-151.0,0.000152,2]
[419969759,1775573448494,-151.970988,0.000152,2]
[419969760,1775573448506,-223.873308,0.000152,2]
[419969761,1775573448516,-151.0,0.000152,2]
[419969762,1775573448528,-399.955189,0.000152,2]
[419969763,1775573448539,-223.873308,0.000152,2]
[419969764,1775573448551,-223.873308,0.000152,2]
[419969765,1775573448563,-399.955189,0.000152,2]
[419969766,1775573448574,-151.0,0.000152,2]
[419969767,1775573448586,-151.0,0.000152,2]
[419969768,1775573448597,-223.873308,0.000152,2]
[419969769,1775573448608,-399.955189,0.000152,2]
[419969770,1775573448618,-161.643915,0.000152,2]
[419969771,1775573448628,-151.0,0.000152,2]
[419969772,1775573448640,-161.643915,0.000152,2]
[419969773,1775573448651,-310.762173,0.000152,2]
[419969774,1775573448662,-196.442134,0.000152,2]
[419969775,1775573448673,-151.0,0.000152,2]
[419969776,1775573448684,-161.643915,0.000152,2]
[419969777,1775573448695,-310.762173,0.000152,2]
[419969778,1775573448705,-196.442134,0.000152,2]
[419969779,1775573448716,-151.0,0.000152,2]
[419969780,1775573448727,-310.762173,0.000152,2]
[419969781,1775573448738,-161.643915,0.000152,2]
[419969782,1775573448749,-196.442134,0.000152,2]
[419969783,1775573448760,-151.0,0.000152,2]
[419969784,1775573448771,-237.471499,0.000152,2]
[419969785,1775573448781,-310.762173,0.000152,2]
[419969786,1775573448792,-151.0,0.000152,2]
[419969787,1775573448802,-196.442134,0.000152,2]
[419969788,1775573448814,-151.0,0.000152,2]
[419969789,1775573448824,-575.477206,0.000152,2]
[419969790,1775573448835,-575.477206,0.000152,2]
[419969791,1775573448847,-893.154203,0.000152,2]
[419969792,1775573448857,-575.477206,0.000152,2]
[419969793,1775573448868,-893.154203,0.000152,2]
[419969794,1775573448879,-893.154203,0.000152,2]
[419969795,1775573448890,-575.477206,0.000152,2]
[419969796,1775573448901,-893.154203,0.000152,2]
[419969797,1775573448913,-184.926042,0.000152,2]
[419969798,1775573448923,-184.926042,0.000152,2]
[419969799,1775573448933,-184.926042,0.000152,2]
[419969800,1775573448943,-151.0,0.000152,2]
[419969801,1775573448954,-184.926042,0.000152,2]
[419969802,1775573448965,-151.0,0.000152,2]
[419969803,1775573448975,-151.0,0.000152,2]
[419969804,1775573448987,-151.0,0.000152,2]
[419969805,1775573448998,-151.0,0.000152,2]
[419969806,1775573449009,-691.338834,0.000152,2]
[419969807,1775573449019,-151.0,0.000152,2]
[419969808,1775573449030,-691.338834,0.000152,2]
[419969809,1775573449041,-151.0,0.000152,2]
[419969810,1775573449052,-691.338834,0.000152,2]
[419969811,1775573449063,-151.0,0.000152,2]
[419969812,1775573449074,-151.0,0.000152,2]
[419969813,1775573449085,-202.207363,0.000152,2]
[419969814,1775573449096,-151.0,0.000152,2]
[419969815,1775573449106,-691.338834,0.000152,2]
[419969816,1775573449116,-151.0,0.000152,2]
[419969817,1775573449127,-202.207363,0.000152,2]
[419969818,1775573449138,-151.0,0.000152,2]
[419969819,1775573449148,-202.207363,0.000152,2]
[419969820,1775573449159,-216.568956,0.000152,2]
[419969821,1775573449170,-317.302167,0.000152,2]
[419969822,1775573449180,-151.0,0.000152,2]
[419969823,1775573449191,-202.207363,0.000152,2]
[419969824,1775573449201,-216.568956,0.000152,2]
[419969825,1775573449212,-317.302167,0.000152,2]
[419969826,1775573449228,-216.568956,0.000152,2]
[419969827,1775573449240,-317.302167,0.000152,2]
[419969828,1775573449252,-151.0,0.000152,2]
[419969829,1775573449263,-216.568956,0.000152,2]
[419969830,1775573449275,-1400.599858,0.000152,2]
[419969831,1775573449286,-317.302167,0.000152,2]
[419969832,1775573449297,-320.182855,0.000152,2]
[419969833,1775573449309,-959.202979,0.000152,2]
[419969834,1775573449320,-1400.599858,0.000152,2]
[419969835,1775573449332,-320.182855,0.000152,2]
[419969836,1775573449344,-193.73437,0.000152,2]
[419969837,1775573449356,-1400.599858,0.000152,2]
[419969838,1775573449367,-959.202979,0.000152,2]
[419969839,1775573449379,-151.0,0.000152,2]
[419969840,1775573449393,-320.182855,0.000152,2]
[419969841,1775573449404,-1400.599858,0.000152,2]
[419969842,1775573449415,-959.202979,0.000152,2]
[419969843,1775573449426,-151.0,0.000152,2]
[419969844,1775573449437,-320.182855,0.000152,2]
[419969845,1775573449448,-151.0,0.000152,2]
[419969846,1775573449460,-786.609071,0.000152,2]
[419969847,1775573449471,-259.857901,0.000152,2]
[419969848,1775573449483,-959.202979,0.000152,2]
[419969849,1775573449496,-786.609071,0.000152,2]
[419969850,1775573449508,-151.0,0.000152,2]
[419969851,1775573449518,-786.609071,0.000152,2]
[419969852,1775573449529,-786.609071,0.000152,2]
[419969853,1775573449541,-151.0,0.000152,2]
[419969854,1775573449552,-261.829687,0.000152,2]
[419969855,1775573449562,-151.0,0.000152,2]
[419969856,1775573449575,-151.0,0.000152,2]
[419969857,1775573449585,-151.0,0.000152,2]
[419969858,1775573449596,-151.0,0.000152,2]
[419969859,1775573449607,-658.683154,0.000152,2]
[419969860,1775573449618,-151.0,0.000152,2]
[419969861,1775573449629,-151.0,0.000152,2]
[419969862,1775573449643,-658.683154,0.000152,2]
[419969863,1775573449654,-162.667211,0.000152,2]
[419969864,1775573449666,-151.0,0.000152,2]
[419969865,1775573449677,-658.683154,0.000152,2]
[419969866,1775573449688,-464.724154,0.000152,2]
[419969867,1775573449698,-162.667211,0.000152,2]
[419969868,1775573449709,-418.688361,0.000152,2]
[419969869,1775573449720,-151.0,0.000152,2]
[419969870,1775573449730,-658.683154,0.000152,2]
[419969871,1775573449741,-464.724154,0.000152,2]
[419969872,1775573449753,-151.0,0.000152,2]
[419969873,1775573449763,-162.667211,0.000152,2]
[419969874,1775573449774,-418.688361,0.000152,2]
[419969875,1775573449785,-151.0,0.000152,2]
[419969876,1775573449796,-464.724154,0.000152,2]
[419969877,1775573449807,-162.667211,0.000152,2]
[419969878,1775573449818,-151.0,0.000152,2]
[419969879,1775573449829,-418.688361,0.000152,2]
[419969880,1775573449839,-151.0,0.000152,2]
[419969881,1775573449850,-151.0,0.000152,2]
[419969882,1775573449861,-418.688361,0.000152,2]
[419969883,1775573449871,-250.338982,0.000152,2]
[419969884,1775573449882,-151.0,0.000152,2]
[419969885,1775573449893,-1572.607061,0.000152,2]
[419969886,1775573449903,-151.0,0.000152,2]
[419969887,1775573449914,-1572.607061,0.000152,2]
[419969888,1775573449925,-151.0,0.000152,2]
[419969889,1775573450224,-1572.607061,0.000152,2]
[419969890,1775573450235,-169.337725,0.000152,2]
[419969891,1775573450246,-151.0,0.000152,2]
[419969892,1775573450256,-1572.607061,0.000152,2]
[419969893,1775573450274,-151.0,0.000152,2]
[419969894,1775573450286,-169.337725,0.000152,2]
[419969895,1775573450296,-151.0,0.000152,2]
[419969896,1775573450307,-169.337725,0.000152,2]
[419969897,1775573450318,-169.337725,0.000152,2]
[419969898,1775573450329,-464.724154,0.000152,2]
[419969899,1775573450340,-151.0,0.000152,2]
[419969900,1775573450350,-151.0,0.000152,2]
[419969901,1775573450361,-151.0,0.000152,2]
[419969902,1775573450372,-151.0,0.000152,2]
[419969903,1775573450382,-151.0,0.000152,2]
[419969904,1775573450397,-151.0,0.000152,2]
[419969905,1775573450407,-151.0,0.000152,2]
[419969906,1775573450419,-151.0,0.000152,2]
[419969907,1775573450429,-151.0,0.000152,2]
[419969908,1775573450439,-301.588818,0.000152,2]
[419969909,1775573450449,-301.588818,0.000152,2]
[419969910,1775573450459,-425.254164,0.000152,2]
[419969911,1775573450469,-151.0,0.000152,2]
[419969912,1775573450479,-301.588818,0.000152,2]
[419969913,1775573450488,-425.254164,0.000152,2]
[419969914,1775573450498,-301.588818,0.000152,2]
[419969915,1775573450508,-425.254164,0.000152,2]
[419969916,1775573450518,-425.254164,0.000152,2]
[419969917,1775573450529,-151.0,0.000152,2]
[419969918,1775573450539,-249.554595,0.000152,2]
[419969919,1775573450549,-249.554595,0.000152,2]
[419969920,1775573450559,-249.554595,0.000152,2]
[419969921,1775573450568,-468.388762,0.000152,2]
[419969922,1775573450578,-249.554595,0.000152,2]
[419969923,1775573450588,-468.388762,0.000152,2]
[419969924,1775573450598,-152.296349,0.000152,2]
[419969925,1775573450608,-468.388762,0.000152,2]
[419969926,1775573450618,-468.388762,0.000152,2]
[419969927,1775573450629,-164.787684,0.000152,2]
[419969928,1775573450641,-164.787684,0.000152,2]
[419969929,1775573450650,-164.787684,0.000152,2]
[419969930,1775573450660,-164.787684,0.000152,2]
[419969931,1775573450670,-151.0,0.000152,2]
[419969932,1775573450683,-151.0,0.000152,2]
[419969933,1775573450694,-151.0,0.000152,2]
[419969934,1775573450705,-2010.0,0.000152,2]
[419969935,1775573450714,-204.480152,0.000152,2]
[419969936,1775573450724,-184.12686,0.000152,2]
[419969937,1775573450733,-151.0,0.000152,2]
[419969938,1775573450743,-204.480152,0.000152,2]
[419969939,1775573450752,-184.12686,0.000152,2]
[419969940,1775573450761,-151.0,0.000152,2]
[419969941,1775573450770,-151.0,0.000152,2]
[419969942,1775573450780,-151.0,0.000152,2]
[419969943,1775573450789,-204.480152,0.000152,2]
[419969944,1775573450799,-184.12686,0.000152,2]
[419969945,1775573450808,-182.79986,0.000152,2]
[419969946,1775573450818,-151.0,0.000152,2]
[419969947,1775573450831,-204.480152,0.000152,2]
[419969948,1775573450843,-184.12686,0.000152,2]
[419969949,1775573450852,-151.0,0.000152,2]
[419969950,1775573450862,-151.0,0.000152,2]
[419969951,1775573450873,-151.0,0.000152,2]
[419969952,1775573450886,-151.0,0.000152,2]
[419969953,1775573450896,-151.0,0.000152,2]
[419969954,1775573450906,-292.665742,0.000152,2]
[419969955,1775573450916,-937.596937,0.000152,2]
[419969956,1775573450927,-292.665742,0.000152,2]
[419969957,1775573450937,-937.596937,0.000152,2]
[419969958,1775573450947,-292.665742,0.000152,2]
[419969959,1775573450958,-151.0,0.000152,2]
[419969960,1775573450967,-937.596937,0.000152,2]
[419969961,1775573450977,-292.665742,0.000152,2]
[419969962,1775573450988,-241.212837,0.000152,2]
[419969963,1775573450998,-937.596937,0.000152,2]
[419969964,1775573451008,-151.0,0.000152,2]
[419969965,1775573451018,-151.0,0.000152,2]
[419969966,1775573451028,-151.0,0.000152,2]
[419969967,1775573451038,-151.0,0.000152,2]
[419969968,1775573451048,-151.0,0.000152,2]
[419969969,1775573451058,-151.0,0.000152,2]
[419969970,1775573451067,-151.0,0.000152,2]
[419969971,1775573451077,-612.136304,0.000152,2]
[419969972,1775573451087,-151.0,0.000152,2]
[419969973,1775573451097,-509.165765,0.000152,2]
[419969974,1775573451107,-151.0,0.000152,2]
[419969975,1775573451117,-612.136304,0.000152,2]
[419969976,1775573451128,-191.136328,0.000152,2]
[419969977,1775573451139,-612.136304,0.000152,2]
[419969978,1775573451148,-509.165765,0.000152,2]
[419969979,1775573451157,-656.307712,0.000152,2]
[419969980,1775573451167,-191.136328,0.000152,2]
[419969981,1775573451175,-151.0,0.000152,2]
[419969982,1775573451184,-151.0,0.000152,2]
[419969983,1775573451193,-612.136304,0.000152,2]
[419969984,1775573451202,-509.165765,0.000152,2]
[419969985,1775573451211,-656.307712,0.000152,2]
[419969986,1775573451220,-191.136328,0.000152,2]
[419969987,1775573451230,-151.0,0.000152,2]
[419969988,1775573451241,-151.0,0.000152,2]
[419969989,1775573451251,-509.165765,0.000152,2]
[419969990,1775573451261,-656.307712,0.000152,2]
[419969991,1775573451270,-191.136328,0.000152,2]
[419969992,1775573451281,-151.0,0.000152,2]
[419969993,1775573451291,-151.0,0.000152,2]
[419969994,1775573451302,-151.0,0.000152,2]
[419969995,1775573451313,-656.307712,0.000152,2]
[419969996,1775573451323,-223.863328,0.000152,2]
[419969997,1775573451333,-185.576336,0.000152,2]
[419969998,1775573451343,-295.416658,0.000152,2]
[419969999,1775573451353,-752.717278,0.000152,2]
[419970000,1775573451363,-151.0,0.000152,2]
[419970001,1775573451373,-752.717278,0.000152,2]
[419970002,1775573451382,-752.717278,0.000152,2]
[419970003,1775573451395,-752.717278,0.000152,2]
[419970004,1775573451405,-151.0,0.000152,2]
[419970005,1775573451415,-151.0,0.000152,2]
[419970006,1775573451424,-154.435832,0.000152,2]
[419970007,1775573451434,-154.435832,0.000152,2]
[419970008,1775573451443,-154.435832,0.000152,2]
[419970009,1775573451452,-260.414519,0.000152,2]
[419970010,1775573451462,-151.0,0.000152,2]
[419970011,1775573451472,-154.435832,0.000152,2]
[419970012,1775573451483,-260.414519,0.000152,2]
[419970013,1775573451494,-260.414519,0.000152,2]
[419970014,1775573451504,-151.0,0.000152,2]
[419970015,1775573451514,-159.006193,0.000152,2]
[419970016,1775573451524,-260.414519,0.000152,2]
[419970017,1775573451535,-234.050145,0.000152,2]
[419970018,1775573451545,-293.036116,0.000152,2]
[419970019,1775573451554,-151.0,0.000152,2]
[419970020,1775573451564,-234.050145,0.000152,2]
[419970021,1775573451574,-178.332865,0.000152,2]
[419970022,1775573451584,-151.0,0.000152,2]
[419970023,1775573451595,-156.439616,0.000152,2]
[419970024,1775573451604,-234.050145,0.000152,2]
[419970025,1775573451614,-178.332865,0.000152,2]
[419970026,1775573451624,-234.050145,0.000152,2]
[419970027,1775573451635,-313.669269,0.000152,2]
[419970028,1775573451645,-151.0,0.000152,2]
[419970029,1775573451655,-178.332865,0.000152,2]
[419970030,1775573451664,-151.322902,0.000152,2]
[419970031,1775573451674,-313.669269,0.000152,2]
[419970032,1775573451685,-178.332865,0.000152,2]
[419970033,1775573451695,-151.0,0.000152,2]
[419970034,1775573451705,-151.0,0.000152,2]
[419970035,1775573451715,-313.669269,0.000152,2]
[419970036,1775573451725,-151.0,0.000152,2]
[419970037,1775573451735,-151.0,0.000152,2]
[419970038,1775573451744,-313.669269,0.000152,2]
[419970039,1775573451754,-151.0,0.000152,2]
[419970040,1775573451764,-151.0,0.000152,2]
[419970041,1775573451774,-151.0,0.000152,2]
[419970042,1775573451783,-254.471924,0.000152,2]
[419970043,1775573451792,-151.0,0.000152,2]
[419970044,1775573451803,-169.233499,0.000152,2]
[419970045,1775573451812,-543.792617,0.000152,2]
[419970046,1775573451822,-543.792617,0.000152,2]
[419970047,1775573451832,-543.792617,0.000152,2]
[419970048,1775573451843,-543.792617,0.000152,2]
[419970049,1775573451853,-1000.0,0.00015202,2]
[419970050,1775573451863,-300.0,0.00015213,2]
[419970051,1775573451873,-300.0,0.00015213,2]
[419970052,1775573451884,-300.0,0.00015213,2]
[419970053,1775573451895,-300.0,0.00015213,2]
[419970054,1775573451905,-300.0,0.00015213,2]
[419970055,1775573451914,-300.0,0.00015213,2]
[419970056,1775573451924,-300.0,0.00015213,2]
[419970057,1775573451933,-300.0,0.00015213,2]
[419970058,1775573451942,-344.0,0.00015213,2]
[419970059,1775573451952,-250.0,0.00015213,2]
[419970060,1775573451961,-250.0,0.00015213,2]
[419970061,1775573451971,-250.0,0.00015213,2]
[419970062,1775573451980,-250.0,0.00015213,2]
[419970063,1775573451989,-250.0,0.00015213,2]
[419970064,1775573451999,-250.0,0.00015213,2]
[419970065,1775573452008,-250.0,0.00015213,2]
[419970066,1775573452017,-250.0,0.00015213,2]
[419970067,1775573452026,-311.0,0.00015213,2]
[419970068,1775573452034,-256.81661189,0.00015219,2]
[419970069,1775573452044,-501.0,0.00015224,3]
[419970070,1775573452052,-268.31,0.00015228,2]
[419970071,1775573452062,-352.66362631,0.00015233,2]
[419970072,1775573452072,-2000.0,0.00015281,2]
[419970073,1775573452081,-576.52864092,0.00015309,2]
[419970074,1775573452090,-393.45987827,0.0001531,2]
[419970075,1775573452100,-1527.72831,0.0001531,2]
[419970076,1775573452112,-1527.72832,0.0001531,2]
[419970077,1775573452121,-1527.72832,0.0001531,2]
[419970078,1775573452131,-181.21517288,0.00015311,2]
[419970079,1775573452140,-250.76620552,0.0001532,2]
[419970080,1775573452150,-350.0,0.00015326,4]
[419970081,1775573452160,-1573.0,0.0001536,2]
[419970082,1775573452169,-1573.0,0.0001536,2]
[419970083,1775573452177,-276.85105417,0.00015385,2]
[419970084,1775573452186,-1000.0,0.00015389,2]
[419970085,1775573452195,-1000.0,0.00015392,2]
[419970086,1775573452204,-866.4305768,0.000154,2]
[419970087,1775573452213,-2557.0,0.00015401,2]
[419970088,1775573452223,-1000.0,0.0001543,2]
[419970089,1775573452231,-2557.0,0.00015446,2]
[419970090,1775573452241,-1000.0,0.00015448,2]
[419970091,1775573452250,-1000.0,0.00015451,2]
[419970092,1775573452259,-1500.0,0.00015452,2]
[419970093,1775573452269,-1527.72832,0.00015462,2]
[419970094,1775573452278,-1527.72832,0.00015462,2]
[419970095,1775573452288,-1527.72832,0.00015462,2]
[419970096,1775573452299,-1428.38747117,0.00015463,2]
[419970097,1775573452308,-845.79994291,0.00015474,2]
[419970098,1775573452318,-155.0,0.00015491,2]
[419970099,1775573452327,-200.47960007,0.000155,3]
[419970100,1775573452337,-200.0,0.000155,5]